Cogmind - Beta 13 @@@ ROGUE MODE // 2024.04.01 @ 15:42:38 Player: Olafz Result: Destroyed by G-34 Mercenary with Small Laser Performance ------------- Evolutions (1) 500 Regions Visited (2) 400 Robots Destroyed (4) 20 Value Destroyed (120) 120 Prototype IDs (0) 0 Alien Tech Used (0) 0 Bonus (0) 0 TOTAL SCORE: 1040 Bonus ------- None Cogmind --------- Core Integrity 0/400 Matter 300/300 Energy 99/100 System Corruption 0% Temperature Cool (12) Movement Core (100) Ox1 Location -9/Materials Parts ------- > --- POWER (1) -------- (None) > --- PROPULSION (2) --- (None) > --- UTILITY (4) ------ Small Storage Unit > --- WEAPON (2) ------- (None) > --- INVENTORY (8) ---- Light Assault Rifle Light Assault Rifle Peak State ------------ > --- POWER ------------ Light Ion Engine > --- PROPULSION ------- Aluminum Leg Aluminum Leg > --- UTILITY ---------- Small Storage Unit Terrain Scanner > --- WEAPON ----------- Welding Torch Mace > --- INVENTORY -------- Light Assault Rifle Light Assault Rifle [Rating: 8] Favorites ----------- Power Light Ion Engine Engine Light Ion Engine Propulsion Aluminum Leg Leg Aluminum Leg Utility Small Storage Unit Device Terrain Scanner Storage Small Storage Unit Weapon Light Assault Rifle Ballistic Gun Light Assault Rifle Special Weapon Welding Torch Impact Weapon Mace Build | -11 -10 -9 ------- Run | Yrd Mat Mat Slots Evolved 2 | . . 2 Power . | . . . Propulsion . | . . . Utility 2 | . . 2 Weapon . | . . . Parts Attached 10 | 6 . 4 Power 2 | 1 . 1 Engine 2 | 1 . 1 Core . | . . . Reactor . | . . . Propulsion 2 | 2 . . Treads . | . . . Leg 2 | 2 . . Wheel . | . . . Hover . | . . . Flight . | . . . Utility 2 | 1 . 1 Device 1 | . . 1 Storage 1 | 1 . . Processor . | . . . Hackware . | . . . Protection . | . . . Artifact . | . . . Weapon 4 | 2 . 2 Energy Gun . | . . . Energy Cannon . | . . . Ballistic Gun 2 | 2 . . Ballistic Cannon . | . . . Launcher . | . . . Special Weapon 1 | . . 1 Impact Weapon 1 | . . 1 Slashing Weapon . | . . . Piercing Weapon . | . . . Special Melee Weapon . | . . . Unidentified Prototypes . | . . . Parts Lost 6 | . . 6 Power 1 | . . 1 Propulsion 2 | . . 2 Utility 1 | . . 1 Weapon 2 | . . 2 Highest Loss Streak 5 | . . 5 To Critical Strikes . | . . . Average Slot Usage (%) 62 | . 85 50 Engine 9 | . 14 6 Leg 19 | . 28 14 Device 2 | . . 3 Storage 12 | . 14 11 Ballistic Gun 11 | . 28 1 Special Weapon 1 | . . 2 Impact Weapon 6 | . . 10 Naked Turns . | . . . Heaviest Build 12 | 10 10 12 Greatest Support 20 | 20 20 20 Greatest Overweight (x) 2 | 1 . 2 Average Overweight (x) . | . . . Largest Inventory Capacity 8 | 8 8 8 Average Capacity 7 | 7 8 8 Most Carried 2 | 1 1 2 Average Carried 1 | . 1 1 Final Capacity 8 | 8 8 8 Final Carried 2 | 1 1 2 Class Distribution -------------------- 100% | Mutant Dominant Class ---------------- Mutant | -10/Materials Mutant | -9/Materials Resources | -11 -10 -9 ----------- Run | Yrd Mat Mat Matter Collected 309 | 201 87 21 Remotely . | . . . Salvage Created 141 | . 96 45 Parts 8 | . 4 4 Haulers Intercepted . | . . . Recyclers Shooed . | . . . Parts Field Recycled . | . . . Retrieved Matter . | . . . Parts Self-Destructed . | . . . Prevented . | . . . Kills | -11 -10 -9 ------- Run | Yrd Mat Mat Combat Hostiles Destroyed 3 | . 2 1 Guns 2 | . 2 . Classes Destroyed 2 | . 1 1 Builder 1 | . . 1 Grunt 3 | . 2 1 Best Kill Streak 2 | . 2 1 Combat Bots Only 2 | . 2 1 Max Kills in Single Turn 1 | . 1 1 Gunslinging . | . . . Exploded . | . . . Melee . | . . . Uniques/NPCs Destroyed . | . . . Combat | -11 -10 -9 -------- Run | Yrd Mat Mat Hostile Shots Fired 128 | . 25 103 Missed 44 | . 8 36 Damage Taken 1056 | . 229 827 Core 451 | . 41 410 Absorbed by Shields . | . . . Core Remaining (%) 91 | 100 83 . Volleys Fired 17 | . 17 . Largest 2 | . 2 . Hottest 40 | . 40 . Shots Fired 34 | . 34 . Gun 34 | . 34 . Cannon . | . . . Launcher . | . . . Special . | . . . Kinetic 34 | . 34 . Thermal . | . . . Explosive . | . . . Electromagnetic . | . . . Robot Hit Streak 12 | . 12 . Robot Miss Streak 3 | . 3 . Penetration Max . | . . . Secondary Targets 1 | . 1 . Max Gunslinging Chain 1 | . 1 . Shots Hit Robots 25 | . 22 3 Core Hits 9 | . 8 1 Critical Kills . | . . . Critical Parts Destroyed 1 | . . 1 Critical Strikes 1 | . . 1 Smash 1 | . . 1 Melee Attacks 3 | . . 3 Impact 3 | . . 3 Slashing . | . . . Piercing . | . . . Sneak Attacks 1 | . . 1 Combat Hostiles . | . . . Follow-up Attacks . | . . . Damage Inflicted 307 | . 176 131 Guns 176 | . 176 . Cannons . | . . . Explosions . | . . . Melee 131 | . . 131 Ramming . | . . . Kinetic 176 | . 176 . Thermal . | . . . Explosive . | . . . Electromagnetic . | . . . Impact 131 | . . 131 Slashing . | . . . Piercing . | . . . Highest Corruption . | . . . Average Corruption . | . . . Corruption Purged . | . . . Corruption Blocked . | . . . Overload Shots . | . . . Overflow Damage 19 | . . 19 Projectiles . | . . . Explosions . | . . . Melee 19 | . . 19 Knockbacks . | . . . Impact . | . . . Kinetic . | . . . Secondary . | . . . Self-Inflicted Damage . | . . . Shots . | . . . Rammed . | . . . Targets Rammed . | . . . Kicked . | . . . Crushed . | . . . Highest Temperature 48 | . 48 . Average Temperature 26 | . 26 . Received Heat Transfer 636 | . 144 492 Siege Activations . | . . . Robots Corrupted . | . . . Combat Hostiles . | . . . Parts Fried . | . . . Impact Corruptions 1 | . . 1 Robots Melted . | . . . Combat Hostiles . | . . . Parts Melted . | . . . Heat Transferred . | . . . Parts Sabotaged . | . . . Parts Stolen . | . . . Parts Stripped . | . . . Power Chain Reactions . | . . . Alert | -11 -10 -9 ------- Run | Yrd Mat Mat Peak Influence 65 | . 65 47 Initial 27 | . . 27 Average 25 | . 31 28 Maximum Alert Level . | . . . Low Security (%) 100 | 100 100 100 Level 1 . | . . . Level 2 . | . . . Level 3 . | . . . Level 4 . | . . . Level 5 . | . . . High Security . | . . . Max Security . | . . . Squads Dispatched 1 | . . 1 Investigation . | . . . Extermination . | . . . Reinforcement 1 | . . 1 Assault . | . . . Garrison . | . . . Intercept . | . . . Searches Triggered . | . . . Construction Impeded . | . . . Haulers Reinforced . | . . . Active Scanning Responses . | . . . Cargo Convoy Interrupts . | . . . Stealth | -11 -10 -9 --------- Run | Yrd Mat Mat Distress Signals . | . . . Communications Jammed . | . . . Distress Signals . | . . . Times Spotted 10 | . 3 7 Peak Tracking Total 6 | . 2 6 Tactical Retreats . | . . . Traps | -11 -10 -9 ------- Run | Yrd Mat Mat Traps Triggered . | . . . Indirectly . | . . . Trap Hack Attempts . | . . . Triggered . | . . . Disarmed 4 | . . 4 Reprogrammed . | . . . Reused . | . . . Traps Extracted . | . . . Installed . | . . . Triggered . | . . . Machines | -11 -10 -9 ---------- Run | Yrd Mat Mat Machines Disabled . | . . . Max in Single Turn . | . . . Machines Repaired . | . . . Machines Dismantled . | . . . Machines Sabotaged . | . . . Overloaded Fab Kills . | . . . Hacking | -11 -10 -9 --------- Run | Yrd Mat Mat Machines Accessed 2 | . 1 1 Terminals 2 | . 1 1 Fabricators . | . . . Repair Stations . | . . . Recycling Units . | . . . Scanalyzers . | . . . Garrison Access . | . . . Total Hacks 8 | . 3 5 Successful 2 | . . 2 Failed 6 | . 3 3 Catastrophic . | . . . Database Lockouts . | . . . Manual 4 | . . 4 Terminals 8 | . 3 5 Fabricators . | . . . Repair Stations . | . . . Recycling Units . | . . . Scanalyzers . | . . . Garrison Access . | . . . Terminal Hacks 2 | . . 2 Locate Traps 1 | . . 1 Disarm Traps 1 | . . 1 Fabricator Hacks . | . . . Repair Station Hacks . | . . . Recycling Unit Hacks . | . . . Scanalyzer . | . . . Garrison Access Hacks . | . . . Unauthorized Hacks . | . . . Terminals . | . . . Fabricators . | . . . Repair Stations . | . . . Recycling Units . | . . . Scanalyzers . | . . . Garrison Access . | . . . Data Cores Recovered . | . . . Used . | . . . Hacking Detections 2 | . 1 1 Full Trace Events . | . . . Feedback Events . | . . . Feedback Blocked . | . . . Robot Schematics Acquired . | . . . Robots Built . | . . . Authchips . | . . . Time . | . . . Total Robot Build Rating . | . . . Part Schematics Acquired . | . . . Parts Built . | . . . Authchips . | . . . Time . | . . . Total Part Build Rating . | . . . Parts Repaired . | . . . Time . | . . . Parts Recycled . | . . . Recycled Matter . | . . . Retrieved Matter . | . . . Retrieved Components . | . . . Parts Scanalyzed . | . . . Part Schematics Acquired . | . . . Parts Damaged . | . . . Bothacking | -11 -10 -9 ------------ Run | Yrd Mat Mat Used RIF Installer . | . . . Robots Hacked . | . . . Non-combat . | . . . Combat . | . . . Robot Hacks Applied . | . . . Relay Couplers Released . | . . . Fabnet Peak Effective % . | . . . Robots Rewired . | . . . Allies Hacked . | . . . Hacks Repelled . | . . . Allies | -11 -10 -9 -------- Run | Yrd Mat Mat Total Allies . | . . . Largest Group . | . . . Highest-Rated Group . | . . . Highest-Rated Ally . | . . . Total Orders . | . . . Ally Attacks . | . . . Total Damage . | . . . Kills . | . . . Allies Corrupted . | . . . Allies Melted . | . . . Intel | -11 -10 -9 ------- Run | Yrd Mat Mat Robot Analysis Total . | . . . Derelict Logs Recovered . | . . . Drone Launches . | . . . Drone Recoveries . | . . . Exploration | -11 -10 -9 ------------- Run | Yrd Mat Mat Turns Passed 433 | 63 131 239 Spaces Moved 292 | 47 73 172 Core 54 | 6 . 48 Treads . | . . . Legs 238 | 41 73 124 Wheels . | . . . Hover . | . . . Flight . | . . . Fastest Speed 50 | 50 120 100 Average Speed 123 | 114 120 127 Slowest Speed 150 | 120 120 150 Overloaded Moves . | . . . Propulsion Burnouts . | . . . Robots Hopped . | . . . Cave-ins Triggered . | . . . Exploration Rate (%) 15 | 3 23 19 Regions Visited 2 Branch Regions . Pre-discovered Areas . | . . . Known Exits Taken . | . . . Unknown Exits Taken 2 | 1 1 . Scrap Searched . | . . . Spaces Dug . | . . . Terrain Destroyed . | . . . Melee . | . . . Projectile . | . . . AOE . | . . . Terrain Rammed . | . . . Walls Destroyed . | . . . Machines Disabled . | . . . Actions | -11 -10 -9 --------- Run | Yrd Mat Mat Total 328 | 53 89 186 Wait 3 | . . 3 Move 290 | 46 72 172 Hop . | . . . Pick Up 1 | 1 . . Fast Attach 9 | 6 . 3 Attach . | . . . Detach 2 | . . 2 Swap 1 | . . 1 Drop 2 | . . 2 Fire 17 | . 17 . Melee 3 | . . 3 Ram . | . . . Kick . | . . . Crush . | . . . Escape Stasis . | . . . Rewire . | . . . Trap . | . . . Miscellaneous . | . . . Route ------- -11/Scrapyard -10/Materials -9/Materials History --------- Turn | Location | Event 22 | -11/Scrapyard | Discovered new exit (range 13) 64 | -11/Scrapyard | Entered Materials 181 | -10/Materials | Discovered new exit (range 12) 195 | -10/Materials | Entered another Materials area 195 | -9/Materials | Evolved 2 slots: Utility x2 314 | -9/Materials | Build established: Mutant 389 | -9/Materials | Lost 5 parts (1p2n1u1w) 397 | -9/Materials | Core integrity fell below 50% 424 | -9/Materials | Core integrity fell below 20% 434 | -9/Materials | Destroyed by G-34 Mercenary with Small Laser Last Messages --------------- 00280_ O-16 Technician locks terminal. 00333_ Welding Torch destroyed. 00345_ Lgt. Ion Engine destroyed. 00356_ Aluminum Leg destroyed. 00358_ Terrain Scanner destroyed. 00379_ K-01 Serf collects debris. 00393_ K-01 Serf cleans the Pressure Siphon. 00398_ K-01 Serf collects debris. 00403_ Critical hit (Burn: +37). 00405_ K-01 Serf collects debris. 00408_ K-01 Serf cleans the Pressure Siphon. 00421_ G-34 Mercenary suffers critical hit (Smash). 00421_ Destroyed Sml. Laser. 00421_ G-34 Mercenary system corrupted by crushing effect. 00422_ G-34 Mercenary system terminally corrupted. 00424_ Acquired 11 matter. 00428_ K-01 Serf collects debris. 00429_ Critical hit (Burn: +37). 00432_ K-01 Serf collects debris. 00432_ Mace destroyed. Map ----- +----------------------------------------------------+ | ??????## ####### # #???????????? | | ???????# #?????# # #???????????? | | ???????# #?????# # #???????????? | | ???????# #?????# ######+####???????????? | | ????#### ####### #????????????? | | ????# ######???????? | | ????# ? | | ????# "T" ########?????? | | ????####+###### #????????????? | | ?????? ???# ##????????????? | | ?????#! "" #?# #?????????????? | | ?????# Y" #?# #?????????????? | | ?????#!! "" #?# + ????????????? | | ?????#!! #?#k # ???????????? | | ?????# #?# """ # "??????????? | | ?????########?# """ #? ""?????????? | | ??????????????# """ #? ?????????? | | ??????????????# """ #??""?????????? | | ??????????????# #?????????????? | | ??????????????# ###?????????????? | | ??????##########g """ #???????????????? | | ??????# # g""" #???????????????? | | ??????# # g""" #???????????????? | | ??????# """ +% """ ##??????????????? | | ??????#""""" # #??????????????? | | ???????""""" # @ #??????????????? | | ???????""""" # #??????????????? | | ??????# """ ## #??????????????? | | ??????# ## ???????????? | | ??????# ## #?????????? | | ??????########### ??????????? | | ????????????????# ??????????? | | ????????????????# ??????????? | | ????????????????# ########### ???????????? | | ?????????????????+#??????????????????????? | | ????????????????? ??????????????????????? | | ????????????????? ??????????????????????? | | ????????????????? ??????????????????????? | | ????????????????? ??????????????????????? | | ?????????????????????????????????????????? | | ?????????????????????????????????????????? | | ?????????????????????????????????????????? | | ?????????????????????????????????????????? | | ?????????????????????????????????????????? | | ?????????????????????????????????????????? | | ?????????????????????????????????????????? | | ?????????????????????????????????????????? | | ?????????????????????????????????????????? | | ?????????????????????????????????????????? | | ?????????????????????????????????????????? | +----------------------------------------------------+ Best States ------------- Heat Dissipation 28 Energy Generation 10 Energy Capacity 125 Matter Stores 300 Matter Capacity 300 Sight Range 16 Terrain Scan Range 14 Terrain Scan Density 10 Evasion (%) 55 Item Schematics ----------------- None Robot Schematics ------------------ None Fabricated ------------ Nothing Alien Tech Used ----------------- None Achievements -------------- None Challenges ------------ None Game ------ Seed GaussSigixLauncher Manual? 0 Play Time 00:08:10 Cumulative 7.0 hours Start 2024.04.01 @ 15:36:38 End 2024.04.01 @ 15:42:38 Sessions 1 Manual Loads 0 Difficulty Rogue Special Mode None Game No. 16 Rogue 14 Adventurer 2 Explorer 0 Win Type - Total 0 Types 0/0/0/0/0/0/0/0/0 Lore% 14 Gallery% 13 Achievement% 15 Wizard Run 0 Options --------- Layout 0 ASCII 0 Keyboard 1 Movement Arrows Keybinds 0 Fullscreen 2 Font 18/SmallcapsGlow Map View 76x50 Zoom Use 0% Tactical HUD 1 Map Filters NONE Filters NONE Steam 1 RUN: 39739893-1f33-4485-ac79-84ea5cd9e8ab